Cogmind - Beta 10.2 @@@ ROGUE MODE // 2021.02.05 @ 02:38:48 Player: Finestep Result: Self-destructed Performance ------------- Evolutions (3) 1500 Regions Visited (13) 2600 Robots Destroyed (182) 910 Value Destroyed (5331) 5331 Prototype IDs (240) 4800 Alien Tech Used (0) 0 Bonus (5411) 5411 TOTAL SCORE: 20552 Bonus ------- High Alert Combat Kills 417 Follower Combat Kills 355 Entered Garrisons 400 Used RIF Installer 1000 Aligned with FarCom 300 Met Data Miner 300 Used Data Conduit 3000 Friendly Fire -361 Cogmind --------- Core Integrity 20/700 Matter 255/300 Energy 100/100 System Corruption 0% Temperature Cool (12) Movement Core (1600) Ox31 Location -7/Data Miner Parts ------- > --- POWER (1) -------- (None) > --- PROPULSION (4) --- (None) > --- UTILITY (6) ------ High-capacity Storage Unit High-capacity Storage Unit High-capacity Storage Unit Improved Melee Analysis Suite Improved Melee Analysis Suite > --- WEAPON (2) ------- (None) > --- INVENTORY (28) --- Light Angular Momentum Engine Armored Treads Improved Flight Unit Improved Flight Unit Improved Flight Unit Improved Flight Unit Improved Flight Unit Medium Storage Unit Advanced Terrain Scanner Advanced Terrain Scan Processor Hardened Medium Armor Plating Improved Light Armor Plating Layered Light Armor Plating Relay Coupler [NC] (33) Relay Coupler [NC] (31) Relay Coupler [Grunt] (31) Relay Coupler [Sentry] (30) Relay Coupler [Sentry] (29) EM Pulse Cannon Improved Assault Rifle Minigun Gauss Rifle Heavy Battle Rifle Mini Grenade Launcher Remote Datajack Remote Datajack Spear Peak State ------------ > --- POWER ------------ Micro Nuclear Core > --- PROPULSION ------- Medium Treads Medium Treads Armored Huge Wheel > --- UTILITY ---------- High-capacity Storage Unit High-capacity Storage Unit High-capacity Storage Unit Improved Melee Analysis Suite Improved Melee Analysis Suite Chronowheel > --- WEAPON ----------- Chainsword Spear > --- INVENTORY -------- Light Angular Momentum Engine Armored Treads Improved Flight Unit Improved Flight Unit Improved Flight Unit Improved Flight Unit Improved Flight Unit Medium Storage Unit Advanced Terrain Scanner Advanced Terrain Scan Processor Hardened Medium Armor Plating Improved Light Armor Plating Layered Light Armor Plating Relay Coupler [NC] Relay Coupler [NC] Relay Coupler [Grunt] Relay Coupler [Sentry] Relay Coupler [Sentry] EM Pulse Cannon Improved Assault Rifle Minigun Gauss Rifle Heavy Battle Rifle Proton Missile Launcher Mini Grenade Launcher Remote Datajack Remote Datajack [Rating: 60] Favorites ----------- Power Cooled Ion Engine Engine Cooled Ion Engine Power Core Micro Nuclear Core Propulsion Light Treads Treads Light Treads Leg Aluminum Leg Wheel Armored Huge Wheel Flight Unit Improved Flight Unit Utility Large Storage Unit Device System Backup Module Storage Large Storage Unit Processor Advanced Targeting Computer Hackware Hacking Suite Protection Improved Medium Armor Plating Weapon Heavy Assault Rifle Energy Gun Pulse Rifle Energy Cannon Light EM Pulse Cannon Ballistic Gun Heavy Assault Rifle Ballistic Cannon Gauss Cannon Launcher Rocket Launcher Special Weapon Remote Datajack Slashing Weapon Katana Piercing Weapon Spear Special Melee Weapon Improved Datajack Build | -11 -10 -9 -9 -9 -8 -8 -8 -8 -8 -7 -7 -7 -7 ------- Run | Scr Mat Mat Min Exi Min Mat Gar Mat Gar Fac Low Low Dat Slots Evolved 6 | . . 2 . . . 2 . . . 2 . . . Power . | . . . . . . . . . . . . . . Propulsion 2 | . . . . . . 1 . . . 1 . . . Utility 4 | . . 2 . . . 1 . . . 1 . . . Weapon . | . . . . . . . . . . . . . . Parts Attached 199 | 7 17 35 5 1 8 11 6 16 12 51 12 12 6 Power 15 | 1 1 6 . . 1 1 . . 1 1 1 2 . Engine 11 | 1 1 6 . . . 1 . . . 1 . 1 . Core 4 | . . . . . 1 . . . 1 . 1 1 . Reactor . | . . . . . . . . . . . . . . Propulsion 44 | 2 7 10 2 . 2 2 . 5 2 11 . 1 . Treads 32 | 1 6 9 2 . 2 1 . 3 . 7 . 1 . Leg 3 | . . . . . . . . 1 2 . . . . Wheel 8 | 1 1 . . . . 1 . 1 . 4 . . . Hover . | . . . . . . . . . . . . . . Flight 1 | . . 1 . . . . . . . . . . . Utility 54 | 2 1 9 . . . 3 2 4 2 20 3 5 3 Device 9 | . . . . . . . . . . 6 . 2 1 Storage 12 | 2 1 3 . . . 1 . . . 5 . . . Processor 3 | . . 1 . . . . . . . . . . 2 Hackware 5 | . . . . . . . . 1 1 3 . . . Protection 25 | . . 5 . . . 2 2 3 1 6 3 3 . Artifact . | . . . . . . . . . . . . . . Weapon 86 | 2 8 10 3 1 5 5 4 7 7 19 8 4 3 Energy Gun 4 | 1 . 3 . . . . . . . . . . . Energy Cannon 2 | . . . 1 . 1 . . . . . . . . Ballistic Gun 45 | 1 5 6 1 1 2 3 2 5 3 10 3 3 . Ballistic Cannon 3 | . . . . . . . . . . . 3 . . Launcher 12 | . . . 1 . 2 . 1 1 1 2 2 1 1 Special Weapon 7 | . 3 1 . . . . . . . 3 . . . Impact Weapon . | . . . . . . . . . . . . . . Slashing Weapon 9 | . . . . . . 2 1 . 2 3 . . 1 Piercing Weapon 1 | . . . . . . . . . . . . . 1 Special Melee Weapon 3 | . . . . . . . . 1 1 1 . . . Unidentified Prototypes 4 | . . 3 . . . . . . . 1 . . . Parts Lost 22 | . 1 1 2 . . . . 8 . 1 2 . 7 Power 2 | . . . . . . . . . . . 1 . 1 Propulsion 11 | . 1 . 1 . . . . 4 . 1 1 . 3 Utility 3 | . . . . . . . . 2 . . . . 1 Weapon 6 | . . 1 1 . . . . 2 . . . . 2 Highest Loss Streak 7 | . 1 1 2 . . . . 5 . 1 2 . 7 Average Slot Usage (%) 95 | . 99 99 99 100 100 99 100 94 97 95 80 87 83 Engine 7 | . 14 11 11 11 7 5 9 9 3 6 5 . . Core 1 | . . . . . 3 3 . . 5 . . 6 6 Treads 17 | . 22 22 22 22 22 18 18 16 3 9 12 14 12 Leg 2 | . . . . . . . . . 21 10 . . . Wheel 3 | . 5 . . . . 7 9 5 . 8 7 7 6 Storage 26 | . 28 22 33 33 33 27 27 27 27 23 23 23 23 Processor 5 | . . 10 11 11 11 9 3 . . . . . 13 Hackware 1 | . . . . . . . . 1 1 8 . . . Protection 8 | . . 10 . . . 8 14 15 16 7 13 14 5 Energy Gun 1 | . 1 4 . . . . . . . . . . . Energy Cannon 1 | . . . 10 11 5 . . . . . . . . Ballistic Gun 15 | . 25 17 10 11 16 17 15 17 14 14 10 14 9 Naked Turns . | . . . . . . . . . . . . . . Heaviest Build 158 | 15 21 54 55 55 55 69 76 76 71 134 158 153 121 Greatest Support 76 | 10 40 40 43 43 43 65 42 62 33 76 48 28 28 Greatest Overweight (x) 35 | 1 1 1 1 1 1 4 4 22 3 13 5 5 35 Average Overweight (x) 2 | . . . 1 1 1 3 3 2 1 4 3 4 4 Largest Inventory Capacity 32 | 8 10 20 20 20 20 26 22 22 22 32 28 28 28 Average Capacity 20 | 6 9 15 20 20 20 21 22 22 22 26 28 28 28 Most Carried 28 | 8 10 20 20 20 20 22 22 22 22 28 28 28 28 Average Carried 20 | 5 9 15 19 19 19 20 21 21 21 26 27 27 27 Final Capacity 28 | 8 10 20 20 20 20 22 22 22 22 28 28 28 28 Final Carried 28 | 8 10 20 20 20 20 22 22 22 22 28 27 28 27 Class Distribution -------------------- 40% | Bothacker-Mutant 28% | Hauler-Mutant 19% | Mutant 11% | Scavenger-Mutant Dominant Class ---------------- Mutant | -10/Materials Scavenger-Mutant | -9/Materials Hauler-Mutant | -9/Mines Hauler-Mutant | -9/Exiles Hauler-Mutant | -8/Mines Hauler-Mutant | -8/Materials Bothacker-Mutant | -8/Garrison Bothacker-Mutant | -8/Materials Bothacker-Mutant | -8/Garrison Bothacker-Mutant | -7/Factory Bothacker-Mutant | -7/Lower Caves Bothacker-Mutant | -7/Lower Caves Bothacker-Mutant | -7/Data Miner Resources | -11 -10 -9 -9 -9 -8 -8 -8 -8 -8 -7 -7 -7 -7 ----------- Run | Scr Mat Mat Min Exi Min Mat Gar Mat Gar Fac Low Low Dat Matter Collected 4938 | 282 355 917 151 . 261 251 179 658 160 847 483 394 . Remotely . | . . . . . . . . . . . . . . Salvage Created 6830 | 143 544 1922 395 . 380 473 200 992 212 728 271 570 . Parts 387 | 10 28 136 15 . 23 26 17 40 11 48 17 16 . Haulers Intercepted 10 | . 2 5 . . . 1 . 1 . 1 . . . Recyclers Shooed 12 | . 3 3 1 . . . . 1 . 3 . 1 . Parts Field Recycled . | . . . . . . . . . . . . . . Retrieved Matter . | . . . . . . . . . . . . . . Parts Self-Destructed 38 | . . . . . . . . . . . 23 15 . Prevented . | . . . . . . . . . . . . . . Kills | -11 -10 -9 -9 -9 -8 -8 -8 -8 -8 -7 -7 -7 -7 ------- Run | Scr Mat Mat Min Exi Min Mat Gar Mat Gar Fac Low Low Dat Combat Hostiles Destroyed 121 | . 7 32 7 . 9 5 10 21 6 10 8 6 . Guns 93 | . 7 32 1 . 3 5 6 19 4 7 3 6 . Cannons 7 | . . . 4 . 2 . . . . . 1 . . AOE 21 | . . . 2 . 4 . 4 2 2 3 4 . . Classes Destroyed 19 | 2 6 2 2 . 2 . . 2 . 1 2 . . Worker 12 | . 1 5 . . 1 2 . 1 . 2 . . . Builder 7 | . . 3 . . . . . . . 4 . . . Tunneler 4 | 3 . . . . . . . 1 . . . . . Hauler 10 | . 2 5 . . . 1 . 1 . 1 . . . Recycler 15 | 1 2 3 3 . 1 1 . . . 4 . . . Mechanic 1 | . . . . . . . . 1 . . . . . Operator 4 | . 1 2 . . . . . 1 . . . . . Watcher 8 | . 2 5 . . . 1 . . . . . . . Swarmer 39 | . 3 11 3 . 3 . 7 6 . 2 4 . . Grunt 48 | . 4 12 1 . 4 2 3 10 6 3 . 3 . Brawler 1 | . . . . . . . . 1 . . . . . Duelist 2 | . . . . . 1 . . 1 . . . . . Sentry 19 | . . 9 . . . 3 . 4 . 2 . 1 . Demolisher 2 | . . . 2 . . . . . . . . . . Specialist 2 | . . . . . . . . . . . 2 . . Hunter 4 | . . . . . 1 . . . . . 1 2 . Programmer 3 | . . . . . . . . . . 3 . . . Behemoth 1 | . . . . . . . . . . . 1 . . Packrat 3 | . . . . . . . . . . . . 3 . Assembled 1 | . . . 1 . . . . . . . . . . Best Kill Streak 8 | 4 6 5 5 . 4 2 4 8 3 7 5 4 . Combat Bots Only 5 | . 3 4 4 . 3 2 4 5 3 3 5 4 . Max Kills in Single Turn 4 | 1 2 2 2 . 2 1 3 2 1 3 4 1 . Gunslinging 1 | . 1 1 . . . . . 1 . . . . . Exploded 4 | . . . 2 . 2 . 3 1 1 1 4 . . Melee . | . . . . . . . . . . . . . . Uniques/NPCs Destroyed . | . . . . . . . . . . . . . . Combat | -11 -10 -9 -9 -9 -8 -8 -8 -8 -8 -7 -7 -7 -7 -------- Run | Scr Mat Mat Min Exi Min Mat Gar Mat Gar Fac Low Low Dat Damage Taken 9122 | . 214 1233 530 . 427 198 433 1471 392 922 1341 460 1501 Core 1244 | . 45 156 107 . 9 14 41 133 59 57 57 11 555 Absorbed by Shields . | . . . . . . . . . . . . . . Core Remaining (%) 67 | 100 82 . . . 32 . . . 55 . . . . Volleys Fired 528 | 12 51 127 27 . 22 32 23 81 31 50 29 39 4 Largest 2 | 2 2 2 2 . 2 2 2 2 2 2 2 2 1 Hottest 120 | 60 120 100 79 . 79 46 46 46 43 53 76 76 39 Shots Fired 988 | 22 100 248 47 . 38 63 43 159 58 91 55 60 4 Gun 898 | 22 97 247 20 . 25 63 41 156 55 82 37 53 . Cannon 50 | . . . 26 . 7 . . . . . 15 2 . Launcher 34 | . . . 1 . 6 . 2 3 3 7 3 5 4 Special 6 | . 3 1 . . . . . . . 2 . . . Kinetic 854 | 12 90 203 20 . 25 63 41 156 55 82 52 55 . Thermal 57 | 10 10 37 . . . . . . . . . . . Explosive 30 | . . . 1 . 6 . 2 3 3 7 3 5 . Electromagnetic 45 | . . 8 26 . 7 . . . . . . . 4 Robot Hit Streak 26 | 6 26 20 14 . 18 14 16 18 10 14 8 17 . Robot Miss Streak 9 | 3 4 9 4 . 1 2 3 3 1 5 2 3 . Penetration Max 1 | . . . . . . . . . . . . 1 . Secondary Targets 12 | . 2 3 . . . . 1 4 1 1 . . . Max Gunslinging Chain 1 | . 1 1 . . . . 1 1 1 1 . . . Shots Hit Robots 690 | 16 62 177 34 . 29 46 29 115 35 65 38 42 2 Core Hits 351 | 5 26 84 17 . 24 17 15 50 21 49 19 21 3 Critical Hits 9 | . . 4 . . 1 1 1 . . 1 1 . . Critical Kills 5 | . . 1 . . . 1 1 . . 1 1 . . Critical Parts Destroyed 4 | . . 3 . . 1 . . . . . . . . Melee Attacks 26 | . . . . . . 3 1 5 9 6 . . 2 Impact . | . . . . . . . . . . . . . . Slashing 15 | . . . . . . 3 1 . 7 3 . . 1 Piercing 1 | . . . . . . . . . . . . . 1 Sneak Attacks 4 | . . . . . . . . . 1 1 . . 2 Combat Hostiles . | . . . . . . . . . . . . . . Follow-up Attacks 1 | . . . . . . . . . . . . . 1 Damage Inflicted 12447 | 171 668 2343 667 . 806 706 571 1911 568 1633 1167 998 238 Guns 8658 | 171 668 2318 163 . 294 706 352 1580 253 899 501 753 . Cannons 846 | . . . 387 . 163 . . . . . 270 26 . Explosions 2809 | . . . 117 . 349 . 219 331 315 734 396 219 129 Melee 109 | . . . . . . . . . . . . . 109 Ramming 25 | . . 25 . . . . . . . . . . . Kinetic 8140 | 69 594 1680 163 . 294 706 352 1580 253 899 771 779 . Thermal 703 | 102 74 527 . . . . . . . . . . . Explosive 2680 | . . . 117 . 349 . 219 331 315 734 396 219 . Electromagnetic 790 | . . 111 387 . 163 . . . . . . . 129 Impact . | . . . . . . . . . . . . . . Slashing . | . . . . . . . . . . . . . . Piercing 109 | . . . . . . . . . . . . . 109 Highest Corruption 4 | . 1 3 3 3 3 . . . . 4 1 1 . Average Corruption 2 | . 1 2 3 3 3 . . . . 2 1 1 . Corruption Purged 5 | . . . . . . . . . . 4 . 1 . Effects 110 | . 2 36 20 13 18 . . . . 18 . 3 . Message Errors 36 | . 1 8 4 7 10 . . . . 4 . 2 . Matter Fused 18 | . . 3 7 1 3 . . . . 4 . . . Heat Flow Errors 12 | . . 7 . 2 2 . . . . 1 . . . Energy Discharges 15 | . . 8 2 1 2 . . . . 2 . . . Parts Rejected 1 | . . . . . . . . . . 1 . . . Data Loss (minor) 13 | . 1 3 4 2 1 . . . . 1 . 1 . Targeting Errors 14 | . . 6 3 . . . . . . 5 . . . Weapon Failures 1 | . . 1 . . . . . . . . . . . Overload Shots . | . . . . . . . . . . . . . . Overflow Damage 83 | . . . . . . . . . . 25 9 . 49 Projectiles . | . . . . . . . . . . . . . . Explosions 34 | . . . . . . . . . . 25 9 . . Melee 49 | . . . . . . . . . . . . . 49 Knockbacks . | . . . . . . . . . . . . . . Impact . | . . . . . . . . . . . . . . Kinetic . | . . . . . . . . . . . . . . Secondary . | . . . . . . . . . . . . . . Self-Inflicted Damage 159 | . . . 23 . 18 . . 44 . . . 74 . Shots 5 | . . . 1 . 1 . . 1 . . . 2 . Rammed 6 | . . 6 . . . . . . . . . . . Targets Rammed 6 | . . 6 . . . . . . . . . . . Kicked . | . . . . . . . . . . . . . . Crushed . | . . . . . . . . . . . . . . Highest Temperature 406 | 20 105 304 78 178 183 6 45 15 52 279 406 162 . Average Temperature 64 | 15 36 51 34 79 52 2 21 4 13 35 231 61 . Received Heat Transfer 2347 | . 69 432 40 . 162 72 207 495 234 201 159 84 192 Effects 5 | . . 1 . . . . . . . 1 3 . . Shutdowns 2 | . . . . . . . . . . . 2 . . Interference 3 | . . 1 . . . . . . . 1 1 . . Siege Activations . | . . . . . . . . . . . . . . Robots Corrupted . | . . . . . . . . . . . . . . Combat Hostiles . | . . . . . . . . . . . . . . Parts Fried . | . . . . . . . . . . . . . . Impact Corruptions . | . . . . . . . . . . . . . . Robots Melted . | . . . . . . . . . . . . . . Combat Hostiles . | . . . . . . . . . . . . . . Parts Melted 4 | . . 1 . . . . . 3 . . . . . Heat Transferred 1547 | 225 175 1147 . . . . . . . . . . . Parts Sabotaged . | . . . . . . . . . . . . . . Parts Stolen 2 | . . . . . . . . . . . . 2 . Parts Stripped . | . . . . . . . . . . . . . . Power Chain Reactions . | . . . . . . . . . . . . . . Missiles Intercepted . | . . . . . . . . . . . . . . Alert | -11 -10 -9 -9 -9 -8 -8 -8 -8 -8 -7 -7 -7 -7 ------- Run | Scr Mat Mat Min Exi Min Mat Gar Mat Gar Fac Low Low Dat Peak Influence 838 | 20 206 554 342 . 164 139 362 692 726 838 . . . Initial 449 | . 13 4 197 . . 43 90 176 449 380 . . . Average 303 | 7 100 275 203 . 58 62 270 441 601 604 . . . Maximum Alert Level 3 | . 1 2 1 . . . 1 2 3 3 . . . Low Security (%) 43 | 100 97 40 36 . 100 100 29 12 . . . . . Level 1 19 | . 2 25 63 . . . 70 21 . 10 . . . Level 2 29 | . . 34 . . . . . 66 89 56 . . . Level 3 6 | . . . . . . . . . 10 33 . . . Level 4 . | . . . . . . . . . . . . . . Level 5 . | . . . . . . . . . . . . . . High Security . | . . . . . . . . . . . . . . Max Security . | . . . . . . . . . . . . . . Squads Dispatched 22 | . 2 4 . . . 3 . 7 . 6 . . . Investigation 6 | . 2 2 . . . . . 1 . 1 . . . Extermination 3 | . . . . . . . . . . 3 . . . Reinforcement 6 | . . 2 . . . . . 3 . 1 . . . Assault 2 | . . . . . . . . 1 . 1 . . . Garrison 5 | . . . . . . 3 . 2 . . . . . Intercept . | . . . . . . . . . . . . . . Construction Impeded 1 | . . . . . . . . . . 1 . . . Haulers Reinforced . | . . . . . . . . . . . . . . Stealth | -11 -10 -9 -9 -9 -8 -8 -8 -8 -8 -7 -7 -7 -7 --------- Run | Scr Mat Mat Min Exi Min Mat Gar Mat Gar Fac Low Low Dat Distress Signals 8 | . 1 3 . . . 2 . 1 . 1 . . . Communications Jammed . | . . . . . . . . . . . . . . Distress Signals . | . . . . . . . . . . . . . . Times Spotted 178 | . 18 43 12 . 10 8 8 32 7 16 12 8 4 Peak Tracking Total 6 | . 4 5 6 . 3 3 3 6 4 4 5 4 4 Tactical Retreats 11 | . . 3 1 . 2 . . 2 2 1 . . . Traps | -11 -10 -9 -9 -9 -8 -8 -8 -8 -8 -7 -7 -7 -7 ------- Run | Scr Mat Mat Min Exi Min Mat Gar Mat Gar Fac Low Low Dat Traps Triggered 13 | . 1 2 . . . . 3 . 4 3 . . . Indirectly . | . . . . . . . . . . . . . . Trap Hack Attempts 2 | . . . . . . . . . 2 . . . . Triggered . | . . . . . . . . . . . . . . Disarmed . | . . . . . . . . . . . . . . Reprogrammed 1 | . . . . . . . . . 1 . . . . Reused . | . . . . . . . . . . . . . . Traps Extracted . | . . . . . . . . . . . . . . Installed . | . . . . . . . . . . . . . . Triggered . | . . . . . . . . . . . . . . Machines | -11 -10 -9 -9 -9 -8 -8 -8 -8 -8 -7 -7 -7 -7 ---------- Run | Scr Mat Mat Min Exi Min Mat Gar Mat Gar Fac Low Low Dat Machines Disabled 12 | . 3 1 . . . . 1 1 2 . 1 3 . Max in Single Turn 3 | . 1 1 . . . . 1 1 1 . 1 3 . Garrison Relay 3 | . . . . . . . 1 . 2 . . . . Machines Sabotaged . | . . . . . . . . . . . . . . Garrisons Compromised . | . . . . . . . . . . . . . . Overloaded Fab Kills . | . . . . . . . . . . . . . . Fab Network Shutdowns 1 | . . . . . . . . . . 1 . . . Hacking | -11 -10 -9 -9 -9 -8 -8 -8 -8 -8 -7 -7 -7 -7 --------- Run | Scr Mat Mat Min Exi Min Mat Gar Mat Gar Fac Low Low Dat Machines Accessed 41 | . 9 12 . 2 . 3 . 2 . 11 . . 2 Terminals 22 | . 7 8 . . . 1 . . . 6 . . . Fabricators 3 | . . . . . . . . . . 3 . . . Repair Stations 1 | . . . . . . . . 1 . . . . . Recycling Units 5 | . 2 2 . . . . . . . 1 . . . Scanalyzers 4 | . . 2 . . . 1 . . . 1 . . . Garrison Access 2 | . . . . . . 1 . 1 . . . . . Total Hacks 142 | . 30 50 . 2 . 12 . 4 . 29 . . 15 Successful 98 | . 20 32 . 2 . 7 . 4 . 18 . . 15 Failed 44 | . 10 18 . . . 5 . . . 11 . . . Catastrophic 3 | . 1 2 . . . . . . . . . . . Database Lockouts . | . . . . . . . . . . . . . . Manual 55 | . 18 23 . 1 . 6 . 1 . 5 1 . . Terminals 84 | . 28 32 . . . 6 . . . 18 . . . Fabricators 8 | . . . . . . . . . . 8 . . . Repair Stations 2 | . . . . . . . . 2 . . . . . Recycling Units 8 | . 2 5 . . . . . . . 1 . . . Scanalyzers 19 | . . 13 . . . 4 . . . 2 . . . Garrison Access 4 | . . . . . . 2 . 2 . . . . . Terminal Hacks 50 | . 12 12 . 2 . 1 . . . 8 . . 15 Record 1 | . . . . 1 . . . . . . . . . Part Schematic 11 | . 1 . . . . . . . . 2 . . 8 Robot Schematic 6 | . 1 . . . . . . . . 1 . . 4 Robot Analysis 1 | . . 1 . . . . . . . . . . . Prototype ID Bank 6 | . 1 1 . . . . . . . 1 . . 3 Branch Access Points 1 | . . . . . . . . . . 1 . . . Emergency Access Points 1 | . 1 . . . . . . . . . . . . Recycling Unit Index 1 | . 1 . . . . . . . . . . . . Unreport Threat 2 | . . 2 . . . . . . . . . . . Locate Traps 5 | . 1 1 . . . . . . . 3 . . . Dispatch Records 1 | . 1 . . . . . . . . . . . . Transport Status 2 | . . 2 . . . . . . . . . . . Hauler Manifests 4 | . 1 3 . . . . . . . . . . . Registered Components 1 | . 1 . . . . . . . . . . . . Zone Layout 6 | . 3 2 . . . 1 . . . . . . . EX-Prototype ID Bank 1 | . . . . 1 . . . . . . . . . Fabricator Hacks 7 | . . . . . . . . . . 7 . . . Load Schematic 2 | . . . . . . . . . . 2 . . . Build 5 | . . . . . . . . . . 5 . . . Repair Station Hacks 2 | . . . . . . . . 2 . . . . . Scan Component 1 | . . . . . . . . 1 . . . . . Repair 1 | . . . . . . . . 1 . . . . . Recycling Unit Hacks 2 | . . 1 . . . . . . . 1 . . . Retrieve Components 2 | . . 1 . . . . . . . 1 . . . Scanalyzer 18 | . . 12 . . . 4 . . . 2 . . . Insert Component 8 | . . 5 . . . 2 . . . 1 . . . Analyze 10 | . . 7 . . . 2 . . . 1 . . . Garrison Access Hacks 2 | . . . . . . 1 . 1 . . . . . Unlock Access 2 | . . . . . . 1 . 1 . . . . . Unauthorized Hacks 17 | . 8 7 . . . 1 . 1 . . . . . Terminals 12 | . 6 5 . . . 1 . . . . . . . Track 8 | . 4 3 . . . 1 . . . . . . . Botnet 4 | . 2 2 . . . . . . . . . . . Fabricators . | . . . . . . . . . . . . . . Repair Stations . | . . . . . . . . . . . . . . Recycling Units 4 | . 2 2 . . . . . . . . . . . Tunnel 4 | . 2 2 . . . . . . . . . . . Scanalyzers . | . . . . . . . . . . . . . . Garrison Access 1 | . . . . . . . . 1 . . . . . Eject 1 | . . . . . . . . 1 . . . . . Data Cores Recovered 2 | . 1 1 . . . . . . . . . . . Used . | . . . . . . . . . . . . . . Hacking Detections 33 | . 7 11 . . . 2 . 2 . 11 . . . Full Trace Events 1 | . . . . . . . . . . 1 . . . Feedback Events 1 | . . . . . . . . . . 1 . . . Corruption 1 | . . . . . . . . . . 1 . . . Feedback Blocked . | . . . . . . . . . . . . . . Robot Schematics Acquired 6 | . 1 . . . . . . . . 1 . . 4 Robots Built . | . . . . . . . . . . . . . . Matter . | . . . . . . . . . . . . . . Time . | . . . . . . . . . . . . . . Total Robot Build Rating . | . . . . . . . . . . . . . . Part Schematics Acquired 18 | . 1 5 . . . 2 . . . 2 . . 8 Parts Built 4 | . . . . . . . . . . 4 . . . Matter 540 | . . . . . . . . . . 540 . . . Time 134 | . . . . . . . . . . 134 . . . Total Part Build Rating 10 | . . . . . . . . . . 10 . . . Parts Repaired 1 | . . . . . . . . 1 . . . . . Time 26 | . . . . . . . . 26 . . . . . Parts Recycled . | . . . . . . . . . . . . . . Recycled Matter . | . . . . . . . . . . . . . . Retrieved Matter . | . . . . . . . . . . . . . . Retrieved Components 16 | . . 10 . . . . . . . 6 . . . Parts Scanalyzed 8 | . . 5 . . . 2 . . . 1 . . . Part Schematics Acquired 7 | . . 5 . . . 2 . . . . . . . Parts Damaged . | . . . . . . . . . . . . . . Bothacking | -11 -10 -9 -9 -9 -8 -8 -8 -8 -8 -7 -7 -7 -7 ------------ Run | Scr Mat Mat Min Exi Min Mat Gar Mat Gar Fac Low Low Dat Used RIF Installer 2 | . . . . . . . 1 . 1 . . . . Coupler Efficiency 1 | . . . . . . . . . 1 . . . . Robots Hacked 6 | . . . . . . . . 2 1 3 . . . Non-combat . | . . . . . . . . . . . . . . Combat 6 | . . . . . . . . 2 1 3 . . . Robot Hacks Applied 8 | . . . . . . . . 4 1 3 . . . find_garrison 1 | . . . . . . . . 1 . . . . . disrupt_area 1 | . . . . . . . . 1 . . . . . spike_heat 1 | . . . . . . . . . . 1 . . . overwrite_iff 1 | . . . . . . . . 1 . . . . . streamctrl_high 1 | . . . . . . . . 1 . . . . . formatsys_high 3 | . . . . . . . . . 1 2 . . . Relay Couplers Released 16 | . . . . . . . 4 4 8 . . . . Ejected 4 | . . . . . . . . 4 . . . . . Machine Destruction 12 | . . . . . . . 4 . 8 . . . . Attached 3 | . . . . . . . . 1 1 1 . . . Robots Rewired . | . . . . . . . . . . . . . . Allies Hacked . | . . . . . . . . . . . . . . Hacks Repelled . | . . . . . . . . . . . . . . Allies | -11 -10 -9 -9 -9 -8 -8 -8 -8 -8 -7 -7 -7 -7 -------- Run | Scr Mat Mat Min Exi Min Mat Gar Mat Gar Fac Low Low Dat Total Allies 11 | . . . 4 . . . . 2 1 4 . . . Largest Group 3 | . . . 3 3 . . . 1 1 2 2 . . Highest-Rated Group 77 | . . . 77 77 . . . 29 15 62 62 . . Highest-Rated Ally 31 | . . . 31 31 . . . 29 15 31 31 . . Total Orders . | . . . . . . . . . . . . . . Ally Attacks 70 | . . . 7 . . . . 15 4 13 31 . . Total Damage 995 | . . . 83 . . . . 266 88 75 483 . . Kills 11 | . . . 2 . . . . 2 1 2 4 . . Allies Corrupted . | . . . . . . . . . . . . . . Allies Melted . | . . . . . . . . . . . . . . Intel | -11 -10 -9 -9 -9 -8 -8 -8 -8 -8 -7 -7 -7 -7 ------- Run | Scr Mat Mat Min Exi Min Mat Gar Mat Gar Fac Low Low Dat Robot Analysis Total 116 | . . 1 . . . . . . . . . . 115 Derelict Logs Recovered 4 | . . . 2 . . . . . . . . 2 . Drone Launches . | . . . . . . . . . . . . . . Drone Recoveries . | . . . . . . . . . . . . . . Exploration | -11 -10 -9 -9 -9 -8 -8 -8 -8 -8 -7 -7 -7 -7 ------------- Run | Scr Mat Mat Min Exi Min Mat Gar Mat Gar Fac Low Low Dat Turns Passed 14770 | 112 1255 3088 1212 764 1009 663 390 659 713 2049 955 1752 149 Spaces Moved 7499 | 69 765 1469 622 417 467 334 207 182 319 990 422 1161 75 Core 3 | 1 . . . . . . . 1 . . . . 1 Treads 4083 | . 430 1469 622 417 467 42 3 126 72 128 307 . . Legs 440 | . . . . . . . . . 247 193 . . . Wheels 2973 | 68 335 . . . . 292 204 55 . 669 115 1161 74 Hover . | . . . . . . . . . . . . . . Flight . | . . . . . . . . . . . . . . Fastest Speed 50 | 50 90 160 180 180 180 130 140 140 150 130 150 130 130 Average Speed 163 | 87 134 176 180 180 181 139 140 180 180 156 202 140 161 Slowest Speed 1800 | 90 180 180 180 180 185 180 172 1150 220 210 240 150 1800 Overloaded Moves . | . . . . . . . . . . . . . . Propulsion Burnouts . | . . . . . . . . . . . . . . Robots Hopped . | . . . . . . . . . . . . . . Cave-ins Triggered . | . . . . . . . . . . . . . . Exploration Rate (%) 60 | 6 95 93 99 89 90 15 38 20 41 20 65 95 75 Regions Visited 13 Branch Regions 6 Pre-discovered Areas 28 | . 2 2 1 1 . . . . . . . . 22 Known Exits Taken 4 | . . . . . . 1 . 1 . 1 1 . . Unknown Exits Taken 7 | 1 1 1 1 1 1 . . . . . . 1 . Scrap Searched 9 | . . . 1 . 1 . . . . . 3 4 . Spaces Dug 50 | . 3 1 12 . 7 3 . 8 12 2 2 . . Terrain Destroyed 231 | . 3 1 12 . 54 3 15 25 36 27 14 41 . Melee 5 | . . . . . . 3 . . . 2 . . . Projectile 11 | . 3 1 . . . . . . . . 3 4 . AOE 215 | . . . 12 . 54 . 15 25 36 25 11 37 . Terrain Rammed . | . . . . . . . . . . . . . . Walls Destroyed . | . . . . . . . . . . . . . . Machines Disabled . | . . . . . . . . . . . . . . Actions | -11 -10 -9 -9 -9 -8 -8 -8 -8 -8 -7 -7 -7 -7 --------- Run | Scr Mat Mat Min Exi Min Mat Gar Mat Gar Fac Low Low Dat Total 9076 | 97 891 1730 669 431 590 463 262 348 400 1410 466 1225 94 Wait 539 | . 30 29 10 12 86 66 . 54 . 243 . 2 7 Move 7487 | 68 764 1468 621 416 466 334 206 182 317 989 421 1160 75 Hop . | . . . . . . . . . . . . . . Pick Up 110 | 9 12 27 3 1 3 8 4 5 5 28 . 5 . Fast Attach 59 | 7 3 8 1 . 2 4 . 7 3 15 3 6 . Attach 34 | . 1 9 1 1 1 2 2 4 1 6 2 3 1 Detach 3 | . . 1 . . . . . . . 1 1 . . Swap 106 | . 13 18 3 . 5 5 4 5 8 30 7 3 5 Drop 140 | 1 17 37 3 1 5 9 4 5 7 40 3 7 1 Fire 528 | 12 51 127 27 . 22 32 23 81 31 50 29 39 4 Melee 25 | . . . . . . 3 1 5 9 6 . . 1 Ram . | . . . . . . . . . . . . . . Kick . | . . . . . . . . . . . . . . Crush 6 | . . 6 . . . . . . . . . . . Escape Stasis 37 | . . . . . . . 18 . 17 2 . . . Rewire . | . . . . . . . . . . . . . . Trap 2 | . . . . . . . . . 2 . . . . Miscellaneous . | . . . . . . . . . . . . . . Route ------- -11/Scrapyard -10/Materials (discovered 5 exits: *Mat x3 / [*Min x2]) -9/Materials (discovered 5 exits: *Mat x2 / [*Min] / [*Sto x2]) -9/Mines (discovered 3 exits: *Mat x2 / *Exi) -9/Exiles -8/Mines -8/Materials -8/Garrison -8/Materials -8/Garrison -7/Factory (discovered 2 exits: *Low x2) -7/Lower Caves -7/Lower Caves (discovered 2 exits: [*Fac] / *Dat) -7/Data Miner (discovered 1 exit: [*Pro]) History --------- Turn | Location | Event 10 | -11/Scrapyard | Discovered new exit (range 15) 113 | -11/Scrapyard | Entered Materials 175 | -10/Materials | Discovered new exit (range 11) 226 | -10/Materials | Discovered new exit (range 10) 301 | -10/Materials | Build established: Mutant 384 | -10/Materials | Discovered new exit (range 11) 485 | -10/Materials | Discovered new exit (range 14) 1126 | -10/Materials | Discovered new exit (range 10) 1368 | -10/Materials | Entered another Materials area 1368 | -9/Materials | Evolved 2 slots: Utility x2 1697 | -9/Materials | Discovered new exit (range 10) 1919 | -9/Materials | Build established: Scavenger-Mutant 2648 | -9/Materials | Build established: Mutant 3011 | -9/Materials | Discovered new exit (range 5) 3338 | -9/Materials | Discovered new exit (range 15) 3596 | -9/Materials | Discovered new exit (range 16) 3718 | -9/Materials | Discovered new exit (range 9) 3928 | -9/Materials | Build established: Scavenger-Mutant 4456 | -9/Materials | Entered Mines 4457 | -9/Mines | Assembled infested the area 4458 | -9/Mines | Discovered new exit (range 10) 4481 | -9/Mines | Core integrity fell below 50% 4611 | -9/Mines | Received a Mining Laser from a helpful Derelict 4632 | -9/Mines | Build established: Hauler-Mutant 4802 | -9/Mines | Learned location of Zion (-6) 4847 | -9/Mines | Learned location of 1 exit from Lower Caves 4894 | -9/Mines | Escorted by a lone wolf Derelict 5149 | -9/Mines | Discovered new exit (range 10) 5587 | -9/Mines | Deemed a non-threat by the Exiles lab entrance 5587 | -9/Mines | Discovered new exit (range 5) 5668 | -9/Mines | Entered Exiles 5668 | -9/Exiles | Accompanied by 3 allies 5698 | -9/Exiles | Led the pair of lost Derelicts to a safe place 5715 | -9/Exiles | Met 8R-AWN 5746 | -9/Exiles | Met EX-HEX 5794 | -9/Exiles | Met EX-BIN 5820 | -9/Exiles | Aligned with FarCom system 5821 | -9/Exiles | Given EX-Vault access code 5863 | -9/Exiles | Opened EX-Vault 5875 | -9/Exiles | Found Chronowheel 5914 | -9/Exiles | Warned to stay clear of 0b10 Research branches 5961 | -9/Exiles | Met EX-DEC 6043 | -9/Exiles | Visited The Gauntlet 6396 | -9/Exiles | Discovered new exit (range 14) 6432 | -9/Exiles | Left Exiles lab with Chronowheel 6432 | -9/Exiles | Entered Mines 7412 | -8/Mines | Discovered new exit (range 5) 7441 | -8/Mines | Entered Materials 7441 | -8/Materials | Evolved 2 slots: Propulsion x1, Utility x1 7842 | -8/Materials | Garrison activated, responded to threat 7981 | -8/Materials | Garrison activated, responded to threat 8104 | -8/Materials | Identified exit to Garrison 8104 | -8/Materials | Entered Garrison 8111 | -8/Garrison | Installed Relay Interface Framework 8219 | -8/Garrison | Triggered checkpoint 8256 | -8/Garrison | Garrison Relay disabled 8370 | -8/Garrison | Triggered checkpoint 8443 | -8/Garrison | Triggered checkpoint 8485 | -8/Garrison | Discovered new exit (range 8) 8494 | -8/Garrison | Entered Materials 8530 | -8/Materials | Repaired Lgt. Treads 8551 | -8/Materials | Build established: Bothacker-Mutant 8790 | -8/Materials | Lost 3 parts (1n2w) 8894 | -8/Materials | First assault squad dispatched 9010 | -8/Materials | Garrison activated, responded to threat 9073 | -8/Materials | Lost 5 parts (3n2u) 9138 | -8/Materials | Identified exit to Garrison 9153 | -8/Materials | Entered Garrison 9164 | -8/Garrison | Expanded RIF knowledge: Coupler Efficiency 9386 | -8/Garrison | Triggered checkpoint 9489 | -8/Garrison | Garrison Relay disabled 9658 | -8/Garrison | Triggered checkpoint 9716 | -8/Garrison | Discovered new exit (range 15) 9776 | -8/Garrison | Triggered checkpoint 9792 | -8/Garrison | Garrison Relay disabled 9866 | -8/Garrison | Entered Factory 9866 | -7/Factory | Evolved 2 slots: Propulsion x1, Utility x1 9988 | -7/Factory | Identified exit to Lower Caves 10105 | -7/Factory | Fabricated Imp. Melee Analysis Suite (x1) 10149 | -7/Factory | Fabricated Imp. Melee Analysis Suite (x1) 10259 | -7/Factory | Fabricated Hcp. Storage Unit (x1) 10286 | -7/Factory | Fabricated Hcp. Storage Unit (x1) 10358 | -7/Factory | Local fabrication network quarantined 11679 | -7/Factory | Allied Derelicts emerged from ambush trap array 11866 | -7/Factory | First assault squad dispatched 11915 | -7/Factory | Entered Lower Caves 11915 | -7/Lower Caves | Accompanied by 2 allies 11916 | -7/Lower Caves | Identified exit to Lower Caves 12205 | -7/Lower Caves | Attracted the attention of an 0b10 checkpoint 12376 | -7/Lower Caves | Acquired the password to a Derelict Tinkerer's latest research 12544 | -7/Lower Caves | Spotted B-75 Beast 12551 | -7/Lower Caves | Caught by Unaware searching for contraband prototypes 12589 | -7/Lower Caves | Destroyed B-75 Beast 12870 | -7/Lower Caves | Entered another Lower Caves area 13379 | -7/Lower Caves | Attracted the attention of an 0b10 checkpoint 13561 | -7/Lower Caves | Learned 4 Factory zone layouts 13893 | -7/Lower Caves | Discovered new exit (range 3) 13914 | -7/Lower Caves | Kinecellerator stolen by Master Thief 13932 | -7/Lower Caves | Autogun stolen by Master Thief 14387 | -7/Lower Caves | Discovered new exit (range 16) 14622 | -7/Lower Caves | Entered Data Miner 14622 | -7/Data Miner | Discovered new exit (range 6) 14652 | -7/Data Miner | Met Data Miner 14695 | -7/Data Miner | Received God Mode back door access code from Data Miner 14726 | -7/Data Miner | Activated Chronowheel 14730 | -7/Data Miner | Interfaced with the Data Conduit 14754 | -7/Data Miner | Core integrity fell below 50% 14766 | -7/Data Miner | Core integrity fell below 20% 14771 | -7/Data Miner | Self-destructed Last Messages --------------- 14724_ Chainsword follow-up attack on Data Miner. 14724_ Data Miner disappears through a trap door. 14726_ Spacetime feels off. 14730_ Interfacing with system... Downloaded 115 analysis records. Downloaded 709 prototype IDs. Downloaded central machine database. Downloaded 22 destinations. Downloaded encryption format records. Connection remotely terminated. 14740_ Med. Treads destroyed. 14746_ Chronowheel is disintegrating... 14746_ Proton Missile Launcher destroyed. 14751_ Med. Treads destroyed. 14753_ Arm. Huge Wheel destroyed. 14754_ Spacetime is rapidly distorting... 14756_ Mic. Nuclear Core destroyed. 14757_ Chronowheel destroyed. 14757_ Spacetime feels normal again. 14757_ Chainsword destroyed. Map ----- +----------------------------------------------------+ | | | | | | | | | | | | | | | | | | | | | | | ???????????????????????????????????????? | | ???????????????????????????????????????? | | ???????????????????????????????????????? | | ???????????????????????????????????????? | | ?????????????????????????????????????### | | ??????###############??????????????### | | ?????"""""""""""""""######?#??????## | | ????""""""""" "" # # ###### < # | | ????"""""""" g | | ????"""""" | | ???""""""" g g ! | | ???"""""" | | ???"""""" g | | ????"""""" """""""""""""""" | | ????"""""" @ """"############## | | ????""""""" """""###????????????? | | ?????"""""" "#####??????????????? | | ??????#####; #; "#??????????????????? | | ??????????##"### "#??????????????????? | | ???????????#"### "#??????????????????? | | ???????????#"?# "#??????????????????? | | ?????????????## "#??????????????????? | | ?????????????# "#??????????????????? | | ?????????????### "#??????????????????? | | ???????????????# "##?????????????????? | | ??????????????## ""#?????????????????? | | ?????????????## ""#?????????????????? | | ??????????##"#"X ""#?????????????????? | | ??????????""""" "####??????????????? | | ??????????""""" X"""""??????????????? | | ??????????##"#"X "##"#??????????????? | | ???????????#?## X""""#??????????????? | | ??????????????## "##"#??????????????? | | ???????????????#######?????????????????? | | ???????????????????????????????????????? | | ???????????????????????????????????????? | | ???????????????????????????????????????? | | ???????????????????????????????????????? | | ???????????????????????????????????????? | +----------------------------------------------------+ Best States ------------- Heat Dissipation 34 Coolant Potential 65 Energy Generation 18 Energy Capacity 310 Matter Stores 300 Matter Capacity 300 Sight Range 16 Terrain Scan Range 20 Terrain Scan Density 10 Armor Coverage 825 Resistance: KI 30 Evasion (%) 44 Targeting Accuracy 8 Melee Accuracy 12 Recoil Reduction 3 Kinecelleration 30 Offensive Hacking 20 Relay Coupler Types 28 Relay Coupler Value 1 Item Schematics ----------------- Hcp. Storage Unit | -10/Materials | Hacked Imp. Flight Unit | -9/Materials | Scanalyzed Hacking Suite | -9/Materials | Scanalyzed Hrd. Light Armor Plating | -9/Materials | Scanalyzed Adv. Targeting Computer | -9/Materials | Scanalyzed Imp. Treads | -9/Materials | Scanalyzed Lyr. Light Armor Plating | -8/Materials | Scanalyzed Lgt. Angular Momentum Engine | -8/Materials | Scanalyzed Imp. Melee Analysis Suite | -7/Factory | Hacked Tesla Bomb Launcher | -7/Factory | Hacked Combat Drone Bay | -7/Data Miner | Free Lgt. Regenerative Plating | -7/Data Miner | Free Exp. Flexi-carbon Leg | -7/Data Miner | Free Cmb. Gravmag System | -7/Data Miner | Free Exp. Sensor Array | -7/Data Miner | Free Exp. Terrain Scanner | -7/Data Miner | Free Exp. Terrain Scan Processor | -7/Data Miner | Free Exp. Transmission Jammer | -7/Data Miner | Free Robot Schematics ------------------ O-16 Technician | -10/Materials | Hacked P-60 Hacker | -7/Factory | Hacked S-27 Virus | -7/Data Miner | Free G-50 Soldier | -7/Data Miner | Free X-72 Disruptor | -7/Data Miner | Free I-36 Angel | -7/Data Miner | Free Fabricated ------------ Imp. Melee Analysis Suite | x1 | -7/Factory Imp. Melee Analysis Suite | x1 | -7/Factory Hcp. Storage Unit | x1 | -7/Factory Hcp. Storage Unit | x1 | -7/Factory Alien Tech Used ----------------- None Achievements -------------- None Challenges ------------ None Game ------ Seed NetworkImprovedBooster Manual? 0 Play Time 01:28:52 Cumulative 522.9 hours Start 2021.02.04 @ 16:24:37 End 2021.02.05 @ 02:38:48 Sessions 3 Manual Loads 0 Difficulty Rogue Special Mode None Game No. 335 Rogue 335 Adventurer 0 Explorer 0 Win Type - Total 6 Types 4/0/1/0/1/0/0/0/0 Lore% 88 Gallery% 88 Achievement% 69 Wizard Run 0 Options --------- ASCII 0 Keyboard 0 Movement Mouse Keybinds 1 Fullscreen 2 Font 24/Smallcaps Map View 68x50 Tactical HUD 1 Map Filters NONE Filters NONE Steam 1 RUN: 38aedf75-6e3b-462d-80bd-c1a6be05a148